[Event "GER-ch Youth-U16 2022"]
[Site "Willingen"]
[Date "2022.06.05"]
[Round "1.15"]
[White "Lerchl, Clemens"]
[Black "Albert, Markus"]
[Result "1-0"]
[ECO "B01"]
[WhiteElo "1843"]
[BlackElo "2053"]
[Annotator "TA"]
[PlyCount "173"]
[EventDate "2022.06.05"]
[EventType "swiss"]
[EventRounds "9"]
[EventCountry "GER"]
[SourceTitle "playchess.com"]
[Source "ChessBase"]
[SourceQuality "1"]
[TimeControl "40/4500+30:900+30"]

{[%evp 14,172,31,20,89,85,97,97,97,95,95,106,92,103,109,118,109,114,137,136,145,143,158,149,159,116,127,118,114,119,114,114,103,72,72,72,67,40,40,41,45,45,87,75,107,107,139,69,109,70,159,138,213,219,213,201,212,205,193,141,132,135,202,118,118,118,399,224,567,520,640,625,632,632,625,619,609,602,602,602,565,544,1353,1250,8622,3061,4661,4538,1738,1426,6601,5732,29971,29973,29974,29975,29975,29976,29974,29964,29962,29964,29965,29965,29965,29966,29969,29968,29968,29969,29969,29970,29970,29969,29970,29970,29970,29969,29971,29972,29972,29973,29976,29976,29978,29977,29976,29975,29975,29974,29974,29975,29975,29976,29982,29983,29983,29984,29989,29990,29990,29991,29992,29993,29993,29994,29994,29994,29995,29994,29995,29989,29989,29990,29990,29991,29991,29991,29998,29999,29999]} 1. e4 {[%emt 0:00:00]} d5 {[%emt 0:00:00]} 2. exd5 {[%emt 0:00:00]} Nf6 {[%emt 0:00:00]} 3. Nf3 {[%emt 0:00:00]} Nxd5 {[%emt 0:00:00]} 4. d4 {[%emt 0:00:00]} g6 {[%emt 0:00:00]} 5. c4 {[%emt 0:00:00]} Nb6 {[%emt 0:00:00]} 6. Nc3 {[%emt 0:00:00][%cal Bb1c3,Bc3b5,Bb5c7,Bc7d5][%mdl 32]} Bg7 {[%emt 0:00:00]} 7. Be2 {[%emt 0:00:00]} O-O {[%emt 0:00:00]} 8. h3 {[%emt 0:00:00] [#]} N6d7 $146 {[%emt 0:00:00] B01: Scandinavian Defence.} (8... Nc6 $11) ({Predecessor:} 8... Nc6 9. Be3 e5 10. d5 Ne7 11. O-O Nf5 12. Bg5 f6 13. Bc1 c5 14. dxc6 bxc6 15. b3 Qe7 16. Ne4 Rd8 17. Qc2 Be6 18. a4 c5 19. Ba3 Rac8 20. Rad1 Nd7 21. Rfe1 {1-0 (39) Nepomniachtchi,I (2729)-Smagin,S (2551) Olginka 2011}) 9. Bf4 $16 {[%emt 0:00:00]} Nc6 {[%emt 0:20:28][%cal Oc6d4]} 10. Nb5 $1 {[%emt 0:15:05] White is more active.} e5 {[%emt 0:09:27] White is better.} 11. dxe5 {[%emt 0:07:14]} Ncxe5 {[%emt 0:12:10]} 12. Nxe5 {[%emt 0:00:57]} Nxe5 {[%emt 0:00:50]} 13. Qxd8 {[%emt 0:00:13]} Rxd8 {[%emt 0:00:06]} 14. Nxc7 {[%emt 0:01:33]} Rb8 {[%emt 0:00:07]} 15. O-O {[%emt 0:01:24]} Bf5 {[%emt 0:00:58]} 16. Nd5 {[%emt 0:04:29]} Kf8 {[%emt 0:02:27][%cal Ob7b5] Prevents Ne7.} 17. Rad1 {[%emt 0:04:21]} Be6 {[%emt 0:05:01][%cal Ob7b5]} 18. b3 {[%emt 0:13:25]} Rbc8 {[%emt 0:15:14]} 19. Rfe1 {[%emt 0:07:14]} b5 {[%emt 0:06:22] [#]} 20. Nc7 $1 {[%emt 0:11:07][%mdl 512]} bxc4 {[%emt 0:04:06]} 21. Nxe6+ {[%emt 0:08:09]} (21. Rxd8+ {looks sharper.} Rxd8 22. Nxe6+ fxe6 23. bxc4 Nxc4 24. Bg4) 21... fxe6 {[%emt 0:00:08]} 22. Rxd8+ {[%emt 0:01:57]} (22. bxc4 {is interesting.} Rxd1 23. Bxd1 Nd3 24. Bd6+) 22... Rxd8 {[%emt 0:00:03]} 23. Bxc4 {[%emt 0:00:57]} Nxc4 {[%emt 0:01:27]} 24. bxc4 {[%emt 0:00:08][%mdl 4096] Endgame KRB-KRB} Rd4 {[%emt 0:02:53][%csl LRc4,LRf4]} 25. Be3 {[%emt 0:00:30]} Rxc4 {[%emt 0:00:14]} 26. Bxa7 {[%emt 0:00:07]} Kf7 {[%emt 0:00:12]} 27. Re2 {[%emt 0:02:08]} Bf8 {[%emt 0:01:01]} 28. Be3 {[%emt 0:00:57]} e5 {[%emt 0:02:33]} 29. Rb2 {[%emt 0:02:13]} Ke6 {[%emt 0:00:48]} 30. Kf1 {[%emt 0:01:50]} ({White should try} 30. Rb6+ $16 Kd5 31. Ra6) 30... Ba3 {[%emt 0:01:13]} 31. Rb3 {[%emt 0:02:17]} Be7 {[%emt 0:00:14]} (31... Bc1 $14) 32. Rb6+ {[%emt 0:00:28]} Kf7 {[%emt 0:00:29]} (32... Bd6 $16 {might work better.} 33. g3 Kd5) 33. Ra6 $18 {[%emt 0:00:21]} Rc2 {[%emt 0:02:31]} 34. a4 {[%emt 0:00:58]} Bb4 {[%emt 0:00:54]} 35. Ra7+ {[%emt 0:00:35]} Ke6 {[%emt 0:00:13]} 36. g3 {[%emt 0:01:43]} (36. Rxh7 Ra2 37. Rb7 Rxa4 38. Rb6+ Kf7) (36. Rb7 $18 Be7 37. a5) 36... Ra2 $16 {[%emt 0:00:14]} 37. Kg2 {[%emt 0:00:19]} e4 {[%emt 0:00:31]} (37... Be1 $16 38. Kf3 (38. Rxh7 e4 $16) 38... Kd5) 38. a5 {[%emt 0:00:33]} (38. Rxh7 $18 {Threatens to win with Rg7.} Be1 39. Rh8) 38... Rxa5 {[%emt 0:00:23]} 39. Rxh7 {[%emt 0:00:09] aiming for Rg7.} Ra2 $2 {[%emt 0:00:45][%mdl 8192] Black cannot hold the game after this.} (39... Bc5 $16) 40. Rg7 $18 {[%emt 0:00:24]} Kf6 {[%emt 0:00:54]} (40... Kf5 {is tougher.} 41. g4+ Kf6 42. Bd4+ Ke6 43. Rxg6+ Kd5) 41. Bd4+ {[%emt 0:15:22]} Kg5 {[%emt 0:00:00]} 42. h4+ {[%emt 0:00:00]} Kf5 {[%emt 0:00:00]} 43. Rf7+ {[%emt 0:00:00]} Ke6 {[%emt 0:00:00]} 44. Rf6+ {[%emt 0:00:00]} Kd5 {[%emt 0:00:00]} 45. Be3 {[%emt 0:00:00]} Bd2 {[%emt 0:00:00]} 46. Bxd2 {[%emt 0:00:00]} Rxd2 {[%emt 0:00:00] KR-KR} 47. Kf1 {[%emt 0:00:00]} e3 {[%emt 0:00:00]} 48. fxe3 {[%emt 0:00:00]} Ke4 {[%emt 0:00:00]} 49. Rxg6 {[%emt 0:00:00]} Kf3 {[%emt 0:00:00]} 50. Kg1 {[%emt 0:00:00]} Rg2+ {[%emt 0:00:00]} 51. Kh1 {[%emt 0:00:00] White threatens Rf6+ and mate.} Re2 {[%emt 0:00:00]} 52. h5 {[%emt 0:00:00]} (52. g4 $2 {is a self mate.} Kg3 53. Rf6 Re1+) 52... Rxe3 {[%emt 0:00:00]} 53. Kh2 {[%emt 0:00:00] White mates.} (53. g4 $2 {gets mated.} Kg3 54. Rf6 Re1+) 53... Re5 {[%emt 0:00:00]} 54. g4 {[%emt 0:00:00]} Re2+ {[%emt 0:00:00]} 55. Kh3 {[%emt 0:00:00]} Kf4 {[%emt 0:00:00]} 56. Rf6+ {[%emt 0:00:00]} Kg5 {[%emt 0:00:00] [#]} 57. Rf5+ $1 {[%emt 0:00:00]} Kh6 {[%emt 0:00:00]} 58. Kh4 {[%emt 0:00:00]} Rh2+ {[%emt 0:00:00]} 59. Kg3 {[%emt 0:00:00]} Rc2 {[%emt 0:00:00]} 60. Re5 {[%emt 0:00:00]} Rc3+ {[%emt 0:00:00]} 61. Kf4 {[%emt 0:00:00]} Rc1 {[%emt 0:00:00]} 62. Re6+ {[%emt 0:00:00]} Kg7 {[%emt 0:00:00]} 63. Kg5 {[%emt 0:00:00]} Rc5+ {[%emt 0:00:00] [#]} 64. Kh4 $1 {[%emt 0:00:00]} Rc1 {[%emt 0:00:36]} 65. Ra6 {[%emt 0:00:00]} Rc4 {[%emt 0:01:09]} 66. h6+ {[%emt 0:00:00]} Kh7 {[%emt 0:00:44]} 67. Kh5 {[%emt 0:00:00]} Rc1 {[%emt 0:00:26]} 68. Ra7+ {[%emt 0:00:00]} Kh8 {[%emt 0:00:29]} 69. g5 {[%emt 0:00:00]} Rc5 {[%emt 0:01:04]} 70. Rf7 {[%emt 0:00:00]} Kg8 {[%emt 0:00:31]} 71. Rf6 {[%emt 0:00:00]} Kh7 {[%emt 0:00:13]} 72. Re6 {[%emt 0:00:00]} Rb5 {[%emt 0:00:42]} 73. Re7+ {[%emt 0:00:00]} Kh8 {[%emt 0:00:08]} 74. Kg6 {[%emt 0:00:00][%cal Re7e8]} Rb6+ {[%emt 0:00:18]} 75. Kf5 {[%emt 0:00:00]} Rb5+ {[%emt 0:00:15]} 76. Kf6 {[%emt 0:00:00]} Rb6+ {[%emt 0:00:35]} 77. Re6 {[%emt 0:00:00]} Rb8 {[%emt 0:00:30]} 78. g6 {[%emt 0:00:00][%cal Bg5g6,Bg6g7,Bg7f8][%mdl 32]} Rf8+ {[%emt 0:01:08]} 79. Kg5 {[%emt 0:00:00]} Rd8 {[%emt 0:00:21]} 80. Re5 {[%emt 0:00:00]} Ra8 {[%emt 0:00:23]} 81. Rf5 {[%emt 0:00:00]} Rb8 {[%emt 0:02:40]} 82. Rf8+ {[%emt 0:00:00]} Rxf8 {[%emt 0:00:11]} 83. g7+ {[%emt 0:00:00]} Kh7 {[%emt 0:02:06]} 84. gxf8=B {[%emt 0:00:00]} Kg8 {[%emt 0:00:22]} 85. Kg6 {[%emt 0:00:00]} Kh8 {[%emt 0:00:46]} 86. Bg7+ {[%emt 0:00:00]} Kg8 {[%emt 0:00:13]} 87. h7# {Weighted Error Value: White=0.08 (flawless) /Black=0.65} 1-0

[Event "GER-ch Youth-U16 2022"]
[Site "Willingen"]
[Date "2022.06.05"]
[Round "1.16"]
[White "Chassard, Cedric"]
[Black "Beyer, Lorenz"]
[Result "1-0"]
[ECO "C06"]
[WhiteElo "2051"]
[BlackElo "1512"]
[Annotator "TA"]
[PlyCount "93"]
[EventDate "2022.06.05"]
[EventType "swiss"]
[EventRounds "9"]
[EventCountry "GER"]
[SourceTitle "playchess.com"]
[Source "ChessBase"]
[SourceQuality "1"]
[TimeControl "40/4500+30:900+30"]

{[%evp 23,93,50,40,27,48,33,31,17,17,15,20,16,27,16,8,7,31,10,66,56,74,27,51,40,46,57,69,46,96,95,87,84,100,106,133,58,40,25,44,43,38,18,106,76,52,0,24,25,24,21,25,6,31,39,43,41,104,106,159,84,86,87,334,327,545,539,896,895,889,436,889,878]} 1. e4 {[%emt 0:00:00]} e6 {[%emt 0:00:00]} 2. d4 {[%emt 0:00:00]} d5 {[%emt 0:00:00]} 3. Nd2 {[%emt 0:00:00]} Nf6 {[%emt 0:00:00]} 4. e5 {[%emt 0:00:00]} Nfd7 {[%emt 0:00:00]} 5. Bd3 {[%emt 0:00:00]} c5 {[%emt 0:00:00]} 6. c3 {[%emt 0:00:00]} Nc6 {[%emt 0:00:00]} 7. Ne2 {[%emt 0:00:00]} cxd4 {[%emt 0:00:00]} 8. cxd4 {[%emt 0:00:00]} Qb6 {[%emt 0:07:27]} 9. Nf3 {[%emt 0:00:00]} Bb4+ {[%emt 0:04:15]} 10. Bd2 {[%emt 0:00:00]} f6 {[%emt 0:06:17]} 11. exf6 {[%emt 0:00:00]} Nxf6 {[%emt 0:01:05]} 12. O-O {[%emt 0:00:00]} O-O {[%emt 0:02:36]} 13. Rc1 {[%emt 0:00:00] C06: French Tarrasch: 3...Nf6 4 e5 Nfd7 5 Bd3 main lines.} Bd7 {[%emt 0:03:01]} 14. Bxb4 {[%emt 0:01:04]} Qxb4 {[%emt 0:04:25]} 15. Qd2 {[%emt 0:04:14] White is slightly better.} Qxd2 {[%emt 0:09:30]} 16. Nxd2 {[%emt 0:00:02] [#]} e5 $146 {[%emt 0:01:40]} ({Predecessor:} 16... Rac8 17. a3 e5 18. Nb3 exd4 {½-½ (22) Ucha,L-Fabrega,E (2270) Buenos Aires 1993}) 17. dxe5 {[%emt 0:01:32]} Nxe5 {[%emt 0:01:13]} 18. Bb1 {[%emt 0:01:17]} Rac8 {[%emt 0:03:29]} 19. Nd4 {[%emt 0:06:07]} Nfg4 {[%emt 0:10:52]} 20. h3 {[%emt 0:05:04]} Nh6 {[%emt 0:09:56]} (20... Rxc1 $11 21. Rxc1 Nxf2) 21. Rfe1 $14 {[%emt 0:07:10] And now Rxc8 would win.} Nhf7 {[%emt 0:06:29]} 22. Nf5 {[%emt 0:09:25]} (22. a3) (22. a3 $16) 22... Rxc1 {[%emt 0:02:26]} 23. Ne7+ {[%emt 0:06:10]} Kh8 {[%emt 0:00:05]} 24. Rxc1 {[%emt 0:00:03]} Bc6 {[%emt 0:04:14]} 25. Re1 {[%emt 0:04:28]} Bb5 {[%emt 0:02:50]} (25... g5 $14) 26. f4 $16 {[%emt 0:11:36]} Nc4 {[%emt 0:04:09]} 27. Bd3 $1 {[%emt 0:02:38]} Nfd6 {[%emt 0:00:52]} 28. Nf3 {[%emt 0:02:30]} Rxf4 {[%emt 0:01:53] [#]} 29. Nxd5 {[%emt 0:01:04]} (29. Ng5 $1 $16) 29... Rf8 $14 {[%emt 0:00:08]} 30. Nd4 {[%emt 0:02:54]} Bd7 {[%emt 0:01:06]} 31. b3 {[%emt 0:02:50]} Na5 {[%emt 0:00:31]} 32. Re7 {[%emt 0:01:10]} (32. Ne6 $5 {[%cal Re6f8]} Rb8 33. Nd4 $14) 32... Bc6 {[%emt 0:00:16]} (32... Rf7 $11) 33. Nb4 {[%emt 0:04:44] Strongly threatening Re5. 0x0.00222ce000c9dp-1022s more active pieces.} Be8 {[%emt 0:00:43]} 34. Nd5 {[%emt 0:05:50]} ({White should play} 34. Re6 $14 Rf6 35. Re2) 34... Nc6 {[%emt 0:00:30]} (34... Bc6 $5) 35. Nxc6 {[%emt 0:01:29]} Bxc6 {[%emt 0:00:03]} 36. Nb4 {[%emt 0:01:20]} Be8 {[%emt 0:00:39]} 37. Bc4 {[%emt 0:05:03]} h6 {[%emt 0:00:41]} 38. Bd5 {[%emt 0:01:13]} a5 {[%emt 0:00:31]} 39. Nd3 {[%emt 0:00:25]} b5 {[%emt 0:00:37] [#]} (39... b6 $14) 40. Ra7 $1 $16 {[%emt 0:03:34]} a4 {[%emt 0:00:20]} (40... Rf5 $142 41. Bf3 a4) 41. bxa4 {[%emt 0:00:00]} ({White should try} 41. Ra8) 41... bxa4 {[%emt 0:00:00]} 42. Ra8 {[%emt 0:00:00] aiming for Rd8.} Nb5 $2 {[%emt 0:00:00] This move loses the game for Black.} (42... Kh7 $16) 43. Bc6 $18 {[%emt 0:00:00]} Nc3 {[%emt 0:00:00]} (43... Bxc6 44. Rxf8+ Kh7) 44. Bxe8 {[%emt 0:03:40] White is clearly winning.} Nxa2 {[%emt 0:00:00]} 45. Ne5 {[%emt 0:00:24]} Rg8 {[%emt 0:00:00]} 46. Ng6+ {[%emt 0:01:25]} Kh7 {[%emt 0:00:00]} 47. Ne7 {[%emt 0:00:08] Weighted Error Value: White=0.13 (very precise) /Black=0.42} 1-0

[Event "GER-ch Youth-U16 2022"]
[Site "Willingen"]
[Date "2022.06.05"]
[Round "2.1"]
[White "Lutsko, Artem"]
[Black "Trushko, Andrii"]
[Result "1-0"]
[ECO "B10"]
[WhiteElo "2392"]
[BlackElo "1897"]
[Annotator "TA"]
[PlyCount "71"]
[EventDate "2022.06.05"]
[EventType "swiss"]
[EventRounds "9"]
[EventCountry "GER"]
[SourceTitle "playchess.com"]
[Source "ChessBase"]
[SourceQuality "1"]
[TimeControl "40/4500+30:900+30"]

{[%evp 11,71,45,43,35,35,37,41,37,33,35,37,29,39,34,41,41,71,60,77,82,73,59,68,50,84,31,113,124,129,115,141,143,191,194,172,86,101,80,77,81,86,66,44,57,126,120,245,250,262,256,237,235,491,487,487,479,492,480,485,468,548,431]} 1. e4 {[%emt 0:00:00]} c6 {[%emt 0:00:00]} 2. Nf3 {[%emt 0:00:00]} d5 {[%emt 0:00:00]} 3. Nc3 {[%emt 0:00:00]} dxe4 {[%emt 0:00:00]} 4. Nxe4 {[%emt 0:00:00]} Bg4 {[%emt 0:00:00]} 5. h3 {[%emt 0:00:00]} Bxf3 {[%emt 0:00:00]} 6. Qxf3 {[%emt 0:00:00]} e6 {[%emt 0:00:00]} 7. g3 {[%emt 0:00:00] B11: Caro-Kann: Two Knights Variation.} Nd7 {[%emt 0:00:00]} 8. d4 {[%emt 0:00:00]} Ngf6 {[%emt 0:00:00]} 9. Bg2 {[%emt 0:00:00] White is slightly better.} Be7 {[%emt 0:00:00]} 10. O-O {[%emt 0:00:00]} O-O {[%emt 0:00:00]} 11. Rd1 {[%emt 0:00:00]} Re8 {[%emt 0:00:00]} 12. c4 {[%emt 0:00:00] [#]} h6 $146 {[%emt 0:00:00]} ({Predecessor:} 12... a5 13. Nc3 a4 14. d5 exd5 15. cxd5 a3 16. dxc6 bxc6 17. Rb1 Ne5 18. Qf5 Qa5 19. Qc2 Rad8 {½-½ (19) Mikkelsen,N (2384)-Pedersen,S (2431) Denmark 2011}) 13. Nc3 {[%emt 0:00:00]} Nb6 {[%emt 0:00:00]} 14. Qe2 {[%emt 0:00:00]} Qd7 {[%emt 0:00:00]} 15. Bf4 {[%emt 0:00:00]} Rad8 {[%emt 0:00:25]} 16. Rab1 {[%emt 0:06:22]} Nc8 {[%emt 0:03:26]} 17. b4 {[%emt 0:00:35][%cal Bb2b4,Bb4b5][%mdl 32] White is more active.} Bd6 {[%emt 0:01:28]} 18. Be3 {[%emt 0:00:11]} (18. Be5 $16) 18... Qe7 {[%emt 0:01:08]} (18... Ne7 $14) 19. c5 $16 {[%emt 0:16:54]} Bc7 {[%emt 0:04:15]} 20. b5 {[%emt 0:00:03] Prevents a6.} Nd5 {[%emt 0:00:10]} 21. Bd2 {[%emt 0:02:18]} Qf6 {[%emt 0:06:00] [#]} (21... Qd7 $16 {was called for.} 22. bxc6 bxc6 23. Nxd5 cxd5) 22. bxc6 $1 $18 {[%emt 0:06:20]} bxc6 {[%emt 0:00:02]} 23. Be1 {[%emt 0:05:01]} (23. Nxd5 $18 exd5 24. Qf3) 23... Nce7 {[%emt 0:02:40]} 24. Ne4 {[%emt 0:03:04]} Qg6 {[%emt 0:00:17]} 25. Rb7 {[%emt 0:00:49]} e5 {[%emt 0:07:24]} 26. Nd6 {[%emt 0:04:24]} ({Much weaker is} 26. Rxa7 exd4 27. a4 (27. Rxd4 Nf4 $17) 27... Qe6 $11) 26... Bxd6 {[%emt 0:01:41]} 27. cxd6 {[%emt 0:00:03]} Qxd6 {[%emt 0:02:06]} ({Better is} 27... Nf5 $14) 28. dxe5 $16 {[%emt 0:03:15]} Qc5 {[%emt 0:01:05] [#] This move loses the game for Black.} (28... Qe6 $16) 29. e6 $1 $18 {[%emt 0:04:31] And now Bxd5 would win.} fxe6 {[%emt 0:10:05]} 30. Qxe6+ {[%emt 0:00:04]} Kh8 {[%emt 0:00:07]} 31. Qe5 {[%emt 0:00:55]} Qc2 $2 {[%emt 0:03:16] [#]} (31... Qd6 32. Qxd6 Rxd6 33. Rxa7 Re6) 32. Rxd5 $1 {[%emt 0:01:35][%mdl 512] White is clearly winning.} cxd5 {[%emt 0:01:11]} 33. Rxe7 {[%emt 0:00:03]} Rxe7 {[%emt 0:00:13]} 34. Qxe7 {[%emt 0:00:06]} Rc8 {[%emt 0:01:30]} 35. Bxd5 {[%emt 0:00:11]} Qf5 {[%emt 0:02:03] [#]} 36. Bc3 $1 {[%emt 0:03:46][%mdl 512] Weighted Error Value: White=0.09 (flawless) /Black=0.31} 1-0

[Event "GER-ch Youth-U16 2022"]
[Site "Willingen"]
[Date "2022.06.05"]
[Round "2.2"]
[White "Foerster-Yialamas, Lucas"]
[Black "Petrovskyi, Vadym"]
[Result "0-1"]
[ECO "B90"]
[WhiteElo "2117"]
[BlackElo "2330"]
[Annotator "TA"]
[PlyCount "84"]
[EventDate "2022.06.05"]
[EventType "swiss"]
[EventRounds "9"]
[EventCountry "GER"]
[SourceTitle "playchess.com"]
[Source "ChessBase"]
[SourceQuality "1"]
[TimeControl "40/4500+30:900+30"]

{[%evp 24,84,14,31,15,15,27,-20,-23,-17,-30,-102,-109,-94,-66,-116,-105,-157,-168,-300,-297,-297,-280,-279,-283,-295,-284,-308,-280,-317,-306,-306,-196,-341,-299,-393,-420,-410,-397,-533,-556,-557,-556,-564,-561,-559,-546,-735,-726,-870,-865,-3765,-4032,-2732,-1522,-29982,-29982,-29982,-29983,-29983,-29984,-29983,-29981]} 1. e4 {[%emt 0:00:00]} c5 {[%emt 0:00:00]} 2. Nf3 {[%emt 0:00:00]} d6 {[%emt 0:00:00]} 3. d4 {[%emt 0:00:00]} cxd4 {[%emt 0:00:00]} 4. Nxd4 {[%emt 0:00:00]} Nf6 {[%emt 0:00:00]} 5. Nc3 {[%emt 0:00:00]} a6 {[%emt 0:00:00]} 6. f3 {[%emt 0:00:00]} e5 {[%emt 0:00:00]} 7. Nb3 {[%emt 0:00:00]} Be7 {[%emt 0:00:00]} 8. Be3 {[%emt 0:00:00]} Be6 {[%emt 0:00:00]} 9. Qd2 {[%emt 0:00:00]} Nbd7 {[%emt 0:00:00]} 10. O-O-O {[%emt 0:00:00]} O-O {[%emt 0:00:00]} 11. g4 {[%emt 0:00:00][%cal Bg2g4,Bg4g5][%mdl 32]} b5 {[%emt 0:00:00]} 12. g5 {[%emt 0:00:00]} Nh5 $1 {[%emt 0:00:00][%mdl 4] now scores much better than the old 12...b4.} 13. Nd5 {[%emt 0:00:00]} Bxd5 {[%emt 0:00:00] B90: Sicilian Najdorf: Unusual White 6th moves, 6 Be3 Ng4 and 6 Be3 e5.} 14. exd5 {[%emt 0:00:00]} f6 {[%emt 0:00:00][%cal Rf6g5]} 15. Na5 {[%emt 0:03:16]} (15. g6 $142) 15... fxg5 $11 {[%emt 0:00:00] The position is equal.} 16. Nc6 {[%emt 0:00:33]} Qe8 {[%emt 0:00:00]} 17. Bxg5 {[%emt 0:03:21]} (17. Nxe7+ $11 {keeps the balance.} Qxe7 18. Bxg5) 17... Bxg5 $17 {[%emt 0:00:00]} 18. Qxg5 {[%emt 0:00:06]} Ndf6 {[%emt 0:00:00][%cal Of6d5]} (18... Rxf3 $2 19. Be2 h6 20. Qe7 $18 (20. Qg4 Rf2 $18)) 19. Bd3 {[%emt 0:14:41] [#]} (19. Rg1 $1 $15) 19... Nf4 $1 {[%emt 0:00:00] [#]} ({Much worse is} 19... Nxd5 $6 20. Bxh7+ Kxh7 21. Rxd5 $11) 20. Rhg1 $146 {[%emt 0:19:11]} (20. Rhe1 $142) ({Predecessor:} 20. Be4 Rf7 21. Rhe1 Qf8 22. Kb1 g6 23. a3 Qg7 24. Rd2 Raf8 25. Qg1 Nd7 26. Qa7 {0-1 (61) Weaving,R (2314)-Alsina Leal,D (2507) England 2018}) 20... Rf7 {[%emt 0:00:00]} 21. Be4 {[%emt 0:06:49]} (21. Qh4 $142) 21... Nxe4 $19 {[%emt 0:00:00]} 22. fxe4 {[%emt 0:00:13]} Ne2+ {[%emt 0:00:00]} 23. Kb1 {[%emt 0:00:08]} Nxg1 {[%emt 0:00:00]} 24. Rxg1 {[%emt 0:00:09]} Qf8 {[%emt 0:00:00] White must now prevent ...Rf1+.} 25. b3 {[%emt 0:06:07]} Kh8 {[%emt 0:00:52]} 26. Kb2 {[%emt 0:02:58]} Rf4 {[%emt 0:00:46]} 27. Re1 {[%emt 0:05:04]} Qf6 {[%emt 0:01:03]} 28. Qg1 {[%emt 0:02:54]} (28. Qxf6 $142 gxf6 29. Ne7) 28... Rf2 {[%emt 0:01:27]} 29. Qg4 {[%emt 0:00:41]} Rxh2 {[%emt 0:01:20]} 30. Qd7 {[%emt 0:00:24]} Rf8 {[%emt 0:17:46]} (30... Qf2 $2 31. Rc1 $19) 31. Qb7 {[%emt 0:04:40]} h5 {[%emt 0:06:32][%cal Oh2c2,Bh7h5,Bh5h4,Bh4h3][%mdl 32] [#] And now ...Rxc2+! would win.} 32. Qxa6 {[%emt 0:01:59]} h4 {[%emt 0:01:35]} 33. Qxb5 {[%emt 0:00:41]} Qf2 {[%emt 0:02:15]} 34. Rc1 {[%emt 0:01:14]} h3 {[%emt 0:02:01] aiming for ...Rg2.} 35. Qd3 {[%emt 0:04:15]} Qh4 {[%emt 0:00:31] Against Ne7} 36. a4 {[%emt 0:04:42]} Rg2 {[%emt 0:02:42]} ({Not} 36... Rf4 $2 37. a5 Rg2 38. a6 $17) 37. Rf1 {[%emt 0:04:58]} Rxf1 {[%emt 0:00:55]} 38. Qxf1 {[%emt 0:00:06]} Qf2 {[%emt 0:00:05]} 39. Qxf2 {[%emt 0:01:48]} Rxf2 {[%emt 0:00:02][%cal Bg2f2,Bf2f8,Bf8a8][%mdl 32] Black mates.} 40. a5 {[%emt 0:00:07]} h2 {[%emt 0:00:38]} 41. a6 {[%emt 0:15:10]} Rf8 {[%emt 0:15:39]} 42. a7 {[%emt 0:00:06]} Ra8 {[%emt 0:00:04] Weighted Error Value: White=0.91/Black=0.21 (precise)} 0-1